bitfinex-derivatives/quotes_BTCF0:USTF0_20250417
["timestamp","ask_amount","ask_price","bid_price","bid_amount"]
[1744870554108,0.11861014,84500.0,84499.0,0.150354]
[1744870554401,0.11861014,84500.0,84499.0,0.16214952]
[1744870556191,0.17981014,84500.0,84499.0,0.17093232]
[1744870556395,0.00025754,84500.0,84499.0,0.17093232]
[1744870556592,0.00125754,84500.0,84499.0,0.17093232]
[1744870556899,0.00117754,84500.0,84499.0,0.17093232]
[1744870557105,0.00017754,84500.0,84499.0,0.17093232]
[1744870557299,0.00125754,84500.0,84499.0,0.17220953]
[1744870557699,0.00025754,84500.0,84499.0,0.17220953]
[1744870557899,0.00025754,84500.0,84499.0,0.1716112]
[1744870558099,0.00025754,84500.0,84499.0,0.1726112]
[1744870558305,0.00025754,84500.0,84499.0,0.17301284]
[1744870558709,0.00025754,84500.0,84499.0,0.17201284]
[1744870559006,0.11861014,84500.0,84499.0,0.17341437]
[1744870559410,0.18181014,84500.0,84499.0,0.17093232]
[1744870559599,0.18181014,84500.0,84499.0,0.13102038]
[1744870559999,0.18181014,84500.0,84499.0,0.13142191]
[1744870560604,0.18181014,84500.0,84499.0,0.13182358]
[1744870560903,0.18281014,84500.0,84499.0,0.13182358]
[1744870561109,0.18281014,84500.0,84499.0,0.13222525]
[1744870561708,0.18281014,84500.0,84499.0,0.1316269]
[1744870562209,0.18281014,84500.0,84499.0,0.13202866]
[1744870562708,0.18281014,84500.0,84499.0,0.13302866]
[1744870565806,0.11961014,84500.0,84499.0,0.13302866]
[1744870566007,0.11953014,84500.0,84499.0,0.16312866]
[1744870566219,0.11961014,84500.0,84499.0,0.16312866]
[1744870566404,0.11953014,84500.0,84499.0,0.16312866]
[1744870566616,0.11961014,84500.0,84499.0,0.16312866]
[1744870567418,0.11861014,84500.0,84499.0,0.16312866]
[1744870567618,0.14991014,84500.0,84499.0,0.16312866]
[1744870567820,0.18141014,84500.0,84499.0,0.16312866]
[1744870568316,0.18141014,84500.0,84499.0,0.13302866]
[1744870568712,0.18141014,84500.0,84499.0,0.13202866]
[1744870569017,0.18141014,84500.0,84499.0,0.13302866]
[1744870569519,0.18141014,84500.0,84499.0,0.13250586]
[1744870570219,0.18241014,84500.0,84499.0,0.13250586]
[1744870570420,0.18241014,84500.0,84499.0,0.49330586]
[1744870570714,0.18141014,84500.0,84499.0,0.49330586]
[1744870570920,0.18241014,84500.0,84499.0,0.49330586]
[1744870571121,0.18241014,84500.0,84499.0,0.49430586]
[1744870571320,0.18241014,84500.0,84499.0,0.52650586]
[1744870571822,0.18241014,84500.0,84499.0,0.52550586]
[1744870572022,0.18241014,84500.0,84499.0,0.52698306]
[1744870572626,0.18241014,84500.0,84499.0,0.52646026]
[1744870572924,0.18241014,84500.0,84499.0,0.52746026]
[1744870573121,0.18241014,84500.0,84499.0,0.5211368]
[1744870573424,0.18141014,84500.0,84499.0,0.52793746]
[1744870573718,0.18141014,84500.0,84499.0,0.52841466]
[1744870574329,0.18141014,84500.0,84499.0,0.52889186]
[1744870575230,0.18141014,84500.0,84499.0,0.16809186]
[1744870575430,0.18141014,84500.0,84499.0,0.52889186]
[1744870577130,0.18241014,84500.0,84499.0,0.52889186]
[1744870577731,0.18241014,84500.0,84499.0,0.52789186]
[1744870577932,0.18241014,84500.0,84499.0,0.16809186]
[1744870578130,0.18241014,84500.0,84499.0,0.52889186]
[1744870578531,0.18241014,84500.0,84499.0,0.52789186]
[1744870578829,0.18241014,84500.0,84499.0,0.52889186]
[1744870579226,0.18241014,84500.0,84499.0,0.60485186]
[1744870579424,0.18141014,84500.0,84499.0,0.41053786]
[1744870579729,0.1183638,84492.0,84491.0,0.00017754]
[1744870579931,0.4791638,84492.0,84491.0,0.00017754]
[1744870580427,0.1183722,84486.0,84485.0,0.07596]
[1744870580630,0.1183736,84485.0,84480.0,0.24076411]
[1744870580823,0.5102736,84485.0,84480.0,0.24076411]
[1744870581531,0.5102736,84485.0,84480.0,0.18057308]
[1744870581532,0.1183792,84481.0,84480.0,0.18057308]
[1744870581932,0.1183792,84481.0,84480.0,0.21057308]
[1744870582133,0.1183792,84481.0,84480.0,0.18057308]
[1744870582335,0.1815792,84481.0,84480.0,0.18057308]
[1744870582730,0.1815792,84481.0,84480.0,0.18157308]
[1744870584338,0.1183848,84477.0,84476.0,0.00017754]
[1744870584529,0.1223902,84481.0,84461.0,0.0321]
[1744870584530,0.1184017,84465.0,84464.0,0.07596]
[1744870585629,0.1184017,84465.0,84464.0,0.07696]
[1744870585837,0.1823017,84465.0,84464.0,0.07696]
[1744870587038,0.1184017,84465.0,84464.0,0.20434388]
[1744870587446,0.1184817,84465.0,84464.0,0.20434388]
[1744870587739,0.1184817,84465.0,84464.0,0.20334388]
[1744870587932,0.1184817,84465.0,84464.0,0.20434388]
[1744870589036,0.1184017,84465.0,84464.0,0.20434388]
[1744870589246,0.1184817,84465.0,84464.0,0.20434388]
[1744870590044,0.1184817,84465.0,84464.0,0.20578424]
[1744870591746,0.1184817,84465.0,84464.0,0.08738114]
[1744870593143,0.1184817,84465.0,84464.0,0.01142114]
[1744870593448,0.1503817,84465.0,84464.0,0.08738114]
[1744870593649,0.1503817,84465.0,84464.0,0.11758114]
[1744870593943,0.1821817,84465.0,84464.0,0.23598424]
[1744870595243,0.1821817,84465.0,84464.0,0.11758114]
[1744870598941,0.1821817,84465.0,84464.0,0.23598424]
[1744870599545,0.1821817,84465.0,84464.0,0.23454388]
[1744870599752,0.1821817,84465.0,84464.0,0.23646431]
[1744870600147,0.1821817,84465.0,84464.0,0.23694438]
[1744870600643,0.1821817,84465.0,84464.0,0.23742445]
[1744870600839,0.1821817,84465.0,84464.0,0.04306135]
[1744870601351,0.1821817,84465.0,84464.0,0.03408057]
[1744870601742,0.5429817,84465.0,84464.0,0.03408057]
[1744870602346,0.5429817,84465.0,84464.0,0.15248367]
[1744870603252,0.1821817,84465.0,84464.0,0.15248367]
[1744870603454,0.1821817,84465.0,84464.0,0.15196374]
[1744870603753,0.1821817,84465.0,84464.0,0.18596374]
[1744870604254,0.1821817,84465.0,84464.0,0.18644381]
[1744870604652,0.1821817,84465.0,84464.0,0.18692388]
[1744870605352,0.1184017,84465.0,84464.0,0.18692388]
[1744870605655,0.1184817,84465.0,84464.0,0.18692388]
[1744870605953,0.0591996,84467.0,84466.0,0.1184003]
[1744870606749,0.0591996,84467.0,84466.0,0.12272108]
[1744870606954,0.0591996,84467.0,84466.0,0.12320036]
[1744870607458,0.0591996,84467.0,84466.0,0.12367965]
[1744870607847,0.0591996,84467.0,84466.0,0.12467965]
[1744870608047,0.0591996,84467.0,84466.0,0.12515894]
[1744870609549,0.0591996,84467.0,84466.0,0.12415894]
[1744870609751,0.0601996,84467.0,84466.0,0.12415894]
[1744870610852,0.0601996,84467.0,84466.0,0.12463588]
[1744870612554,0.0601996,84467.0,84466.0,0.1184003]
[1744870612759,0.0601996,84467.0,84466.0,0.12511282]
[1744870613260,0.0601996,84467.0,84466.0,0.12558976]
[1744870613859,0.0601996,84467.0,84466.0,0.1260667]
[1744870614366,0.0601996,84467.0,84466.0,0.12625438]
[1744870617165,0.0601996,84467.0,84466.0,0.12673573]
[1744870617668,0.0601996,84467.0,84466.0,0.12721708]
[1744870618261,0.0601996,84467.0,84466.0,0.1184003]
[1744870618466,0.0601996,84467.0,84466.0,0.12769843]
[1744870618761,0.0601996,84467.0,84466.0,0.1184003]
[1744870619065,0.0601996,84467.0,84466.0,0.12787288]
[1744870619769,0.0591996,84467.0,84466.0,0.12887288]
[1744870621467,0.0591996,84467.0,84466.0,0.12935623]
[1744870622560,0.0892996,84467.0,84466.0,0.12935623]
[1744870626674,0.0591996,84467.0,84466.0,0.12935623]
[1744870627376,0.0591996,84467.0,84466.0,0.12984407]
[1744870627864,0.0591996,84467.0,84466.0,0.13033191]
[1744870628475,0.0591996,84467.0,84466.0,0.13081975]
[1744870629774,0.0918996,84467.0,84466.0,0.13081975]
[1744870630272,0.0918996,84467.0,84466.0,0.1194003]
[1744870630473,0.0918996,84467.0,84466.0,0.13097471]
[1744870631370,0.0918996,84467.0,84466.0,0.13146376]
[1744870631875,0.0918996,84467.0,84466.0,0.13195281]
[1744870632075,0.1219996,84467.0,84466.0,0.13195281]
[1744870632469,0.1219996,84467.0,84466.0,0.13202332]
[1744870634574,0.1219996,84467.0,84466.0,0.20798332]
[1744870638869,0.1219996,84467.0,84466.0,0.23848332]
[1744870639070,0.1219996,84467.0,84466.0,0.26978332]
[1744870640174,0.0591996,84467.0,84466.0,0.26978332]
[1744870640871,0.0591996,84467.0,84466.0,0.27027552]
[1744870641679,0.1228996,84467.0,84466.0,0.27076772]
[1744870642174,0.1228996,84467.0,84466.0,0.27125992]
[1744870643980,0.1228996,84467.0,84466.0,0.27140182]
[1744870645682,0.1228996,84467.0,84466.0,0.15300152]
[1744870645979,0.1228996,84467.0,84466.0,0.24010182]
[1744870646475,0.1228996,84467.0,84466.0,0.09120152]
[1744870646978,0.1228996,84467.0,84466.0,0.01524152]
[1744870648179,0.1228996,84467.0,84466.0,0.01424152]
[1744870648681,0.1238996,84467.0,84466.0,0.01424152]
[1744870658292,0.4846996,84467.0,84466.0,0.01424152]
[1744870658891,0.10367106,84464.0,84463.0,0.0328]
[1744870659793,0.16867106,84464.0,84463.0,0.0328]
[1744870660098,0.52947106,84464.0,84463.0,0.0328]
[1744870660709,0.52947106,84464.0,84463.0,0.0338]
[1744870664902,0.16867106,84464.0,84463.0,0.0338]
[1744870665107,0.52947106,84464.0,84463.0,0.0338]
[1744870665907,0.52947106,84464.0,84463.0,0.0665]
[1744870667407,0.49617106,84464.0,84463.0,0.1849045]
[1744870667612,0.10367106,84464.0,84463.0,0.0665]
[1744870668017,0.10375106,84464.0,84463.0,0.0665]
[1744870668718,0.10375106,84464.0,84463.0,0.1849045]
[1744870668901,0.10375106,84464.0,84463.0,0.0665]
[1744870673114,0.10375106,84464.0,84463.0,0.18625172]
[1744870673506,0.10375106,84464.0,84463.0,0.18674848]
[1744870674105,0.10375106,84464.0,84463.0,0.0688408]
[1744870675313,0.10375106,84464.0,84463.0,0.0361408]
[1744870676010,0.16455106,84464.0,84463.0,0.0361408]
[1744870677511,0.16455106,84464.0,84463.0,0.01410539]
[1744870677712,0.16455106,84464.0,84459.0,0.0050912]
[1744870677713,0.1184087,84460.0,84459.0,0.0050912]
[1744870677916,0.4792087,84460.0,84459.0,1e-07]
[1744870678617,0.5423087,84460.0,84459.0,1e-07]
[1744870679207,0.5423087,84460.0,84459.0,0.0010001]
[1744870679813,0.5423087,84460.0,84459.0,0.0030001]
[1744870681910,0.9537087,84460.0,84459.0,0.0030001]
[1744870683914,0.9537087,84460.0,84459.0,1e-07]
[1744870686209,0.9537087,84460.0,84456.0,6e-08]
[1744870686210,0.1184129,84457.0,84456.0,6e-08]
[1744870686411,0.1184325,84443.0,84442.0,6e-08]
[1744870686610,0.1184325,84443.0,84441.0,0.033]
[1744870686611,0.1184437,84435.0,84434.0,0.0327]
[1744870686820,0.4792437,84435.0,84434.0,0.0951]
[1744870687123,0.4892437,84435.0,84434.0,0.0951]
[1744870687623,0.5193437,84435.0,84434.0,0.0951]
[1744870688312,0.5193437,84435.0,84434.0,0.1001]
[1744870689822,0.5193437,84435.0,84434.0,0.1041]
[1744870691520,0.1585437,84435.0,84434.0,0.1041]
[1744870691826,0.5193437,84435.0,84434.0,0.1041]
[1744870695723,0.5193437,84435.0,84434.0,0.0714]
[1744870695919,0.1184451,84434.0,84433.0,7e-08]
[1744870696127,0.1949451,84434.0,84433.0,7e-08]
[1744870696422,0.2279451,84434.0,84433.0,7e-08]
[1744870697322,0.2279451,84434.0,84433.0,0.00200007]
[1744870698219,0.2279451,84434.0,84433.0,0.00300007]
[1744870699617,0.6393451,84434.0,84433.0,0.00300007]
[1744870701423,0.6060451,84434.0,84433.0,0.00300007]
[1744870702522,0.5628451,84434.0,84433.0,0.00300007]
[1744870703028,0.5299251,84434.0,84433.0,0.00300007]
[1744870703621,0.5298451,84434.0,84433.0,0.06800007]
[1744870704427,0.5299251,84434.0,84433.0,0.06800007]
[1744870705419,0.4793251,84434.0,84433.0,0.06800007]
[1744870708923,0.4793251,84434.0,84433.0,0.18644657]
[1744870709530,8e-05,84434.0,84433.0,0.18644657]
[1744870709726,0.00010801,84439.0,84438.0,0.1184395]
[1744870709926,0.0592136,84447.0,84442.0,0.1184339]
[1744870710229,0.0592123,84449.0,84442.0,0.13042332]
[1744870710230,0.0592146,84446.0,84442.0,0.13042332]
[1744870710428,0.1184318,84444.0,84442.0,0.16342332]
[1744870710632,0.00025765,84443.0,84442.0,0.22922332]
[1744870710832,0.11869015,84443.0,84442.0,0.22922332]
[1744870711329,0.11869015,84443.0,84442.0,0.2172339]
[1744870711330,0.12069015,84443.0,84442.0,0.2172339]
[1744870712221,0.11869015,84443.0,84442.0,0.2172339]
[1744870712429,0.12069015,84443.0,84442.0,0.2172339]
[1744870712832,0.11869015,84443.0,84442.0,0.2172339]
[1744870713027,0.12069015,84443.0,84442.0,0.2172339]
[1744870717435,0.11869015,84443.0,84442.0,0.2172339]
[1744870717734,0.12069015,84443.0,84442.0,0.2172339]
[1744870721038,0.11869015,84443.0,84442.0,0.2172339]
[1744870721239,0.12069015,84443.0,84442.0,0.0988]
[1744870723231,0.12069015,84443.0,84442.0,0.0662]
[1744870723632,0.18319015,84443.0,84442.0,0.0662]
[1744870723942,0.18119015,84443.0,84442.0,0.0662]
[1744870724239,0.18319015,84443.0,84442.0,0.0662]
[1744870726444,0.18319015,84443.0,84442.0,0.033]
[1744870727345,0.1184381,84439.0,84438.0,0.1491394]
[1744870728039,0.1184381,84439.0,84438.0,0.1799394]
[1744870728631,0.1184381,84439.0,84438.0,0.1809394]
[1744870728632,0.1194381,84439.0,84438.0,0.1809394]
[1744870731450,0.1194381,84439.0,84438.0,0.0625]
[1744870731648,0.1523381,84439.0,84438.0,0.06353987]
[1744870732253,0.1523381,84439.0,84438.0,0.06406056]
[1744870732848,0.1523381,84439.0,84438.0,0.18302072]
[1744870733240,0.1523381,84439.0,84438.0,0.00308122]
[1744870734252,0.1523381,84439.0,84438.0,0.12152072]
[1744870740653,0.1523381,84439.0,84438.0,0.15342072]
[1744870745863,0.1523381,84439.0,84438.0,0.00308122]
[1744870746063,0.1856381,84439.0,84438.0,0.00308122]
[1744870749565,0.2186381,84439.0,84438.0,0.00308122]
[1744870750060,0.6300381,84439.0,84438.0,2e-08]
[1744870750457,0.8800381,84439.0,84438.0,2e-08]
[1744870752858,0.6300381,84439.0,84438.0,2e-08]
[1744870754463,1.3516381,84439.0,84438.0,2e-08]
[1744870761575,1.5482381,84439.0,84438.0,2e-08]
[1744870761875,1.3517181,84439.0,84438.0,2e-08]
[1744870762174,1.3184181,84439.0,84438.0,2e-08]
[1744870762374,1.3183381,84439.0,84438.0,2e-08]
[1744870762570,1.3184181,84439.0,84438.0,2e-08]
[1744870763872,1.2853381,84439.0,84438.0,2e-08]
[1744870764076,1.2854181,84439.0,84438.0,2e-08]
[1744870766078,0.9246181,84439.0,84438.0,2e-08]
[1744870766969,0.5132181,84439.0,84438.0,2e-08]
[1744870767968,0.5132181,84439.0,84438.0,0.03150002]
[1744870770876,0.4803181,84439.0,84438.0,0.03150002]
[1744870773473,0.4803181,84439.0,84438.0,0.0315]
[1744870773668,0.4793181,84439.0,84438.0,0.0315]
[1744870774875,0.4813181,84439.0,84438.0,0.0315]
[1744870775486,0.1215181,84439.0,84438.0,0.0315]
[1744870775669,0.4833181,84439.0,84438.0,0.0315]
[1744870775982,0.1225181,84439.0,84438.0,0.0315]
[1744870776185,0.4833181,84439.0,84438.0,0.0315]
[1744870782194,0.36488,84439.0,84438.0,0.1499395]
[1744870782397,0.4833181,84439.0,84438.0,0.1499395]
[1744870782688,0.1225181,84439.0,84438.0,0.1499395]
[1744870782990,0.1224381,84439.0,84438.0,0.1499395]
[1744870783492,0.003,84439.0,84438.0,0.1499395]
[1744870783681,0.1214381,84439.0,84438.0,0.1499395]
[1744870783987,0.1215181,84439.0,84438.0,0.1499395]
[1744870784183,0.1214381,84439.0,84438.0,0.1499395]
[1744870784381,0.1215181,84439.0,84438.0,0.1499395]
[1744870786293,0.1185181,84439.0,84438.0,0.1509395]
[1744870787598,0.1185181,84439.0,84438.0,0.1824395]
[1744870806719,0.1501181,84439.0,84438.0,0.1824395]
[1744870808517,0.1500381,84439.0,84438.0,0.1824395]
[1744870808717,0.1501181,84439.0,84438.0,0.1824395]
[1744870823419,0.1501181,84439.0,84438.0,0.001]
[1744870824533,0.1501181,84439.0,84438.0,0.1194395]
[1744870824733,0.1501181,84439.0,84438.0,0.1184395]
[1744870825029,0.1551181,84439.0,84438.0,0.1184395]
[1744870825627,0.1521181,84439.0,84438.0,0.1184395]
[1744870825837,0.1541181,84439.0,84438.0,0.1184395]
[1744870826237,0.1521181,84439.0,84438.0,0.1184395]
[1744870826533,0.1541181,84439.0,84438.0,0.1184395]
[1744870827034,0.03568,84439.0,84438.0,0.1184395]
[1744870827527,0.0356,84439.0,84438.0,0.1184395]
[1744870827722,0.03568,84439.0,84438.0,0.1840395]
[1744870828234,0.03468,84439.0,84438.0,0.1840395]
[1744870828738,0.03268,84439.0,84438.0,0.1840395]
[1744870828934,0.00108,84439.0,84438.0,0.1850395]
[1744870829232,0.00017765,84443.0,84442.0,0.1184339]
[1744870829537,0.00017765,84443.0,84442.0,0.4792339]
[1744870829729,0.03215765,84443.0,84442.0,0.5778339]
[1744870829926,0.15059015,84443.0,84442.0,0.5778339]
[1744870830127,0.15059015,84443.0,84442.0,0.6536339]
[1744870830528,0.15059015,84443.0,84442.0,0.6556339]
[1744870831238,0.03215765,84443.0,84442.0,0.6536339]
[1744870831428,0.03215765,84443.0,84442.0,0.6546339]
[1744870832139,0.03215765,84443.0,84442.0,0.6556339]
[1744870832738,0.03215765,84443.0,84442.0,0.6546339]
[1744870833041,0.00017765,84443.0,84442.0,0.6556339]
[1744870833342,0.00025765,84443.0,84442.0,0.6556339]
[1744870833538,0.00017765,84443.0,84442.0,0.6556339]
[1744870833733,0.00025765,84443.0,84442.0,0.6556339]
[1744870835332,0.00025765,84443.0,84442.0,0.2948339]
[1744870835533,0.00025765,84443.0,84442.0,0.6556339]
[1744870836737,0.11869015,84443.0,84442.0,0.6556339]
[1744870836945,0.11869015,84443.0,84442.0,0.2948339]
[1744870837145,0.11869015,84443.0,84442.0,0.6556339]
[1744870837346,0.11869015,84443.0,84442.0,0.2948339]
[1744870837643,0.11869015,84443.0,84442.0,0.6556339]
[1744870838044,0.11869015,84443.0,84442.0,0.2948339]
[1744870838247,0.11869015,84443.0,84442.0,0.6556339]
[1744870840142,0.11869015,84443.0,84442.0,0.2948339]
[1744870840344,0.11869015,84443.0,84442.0,0.6556339]
[1744870841248,0.00025765,84443.0,84442.0,0.6556339]
[1744870841753,0.03175765,84443.0,84442.0,0.6556339]
[1744870842343,0.03175765,84443.0,84442.0,0.2948339]
[1744870842651,0.03175765,84443.0,84442.0,0.6556339]
[1744870842949,0.03175765,84443.0,84442.0,0.2948339]
[1744870843647,0.03175765,84443.0,84442.0,0.6556339]
[1744870844350,0.03175765,84443.0,84442.0,0.2948339]
[1744870844750,0.03175765,84443.0,84442.0,0.6556339]
[1744870845548,0.00025765,84443.0,84442.0,0.6556339]
[1744870846044,0.00017765,84443.0,84442.0,0.6556339]
[1744870846249,0.00025765,84443.0,84442.0,0.6556339]
[1744870847348,0.0592081,84455.0,84442.0,0.6556339]
[1744870847349,0.3608,84479.0,84448.0,0.0592125]
[1744870847539,0.0326,84463.0,84462.0,0.1184059]
[1744870847744,0.1510066,84463.0,84462.0,0.1184059]
[1744870848146,0.1510866,84463.0,84462.0,0.1184059]
[1744870849145,0.1560866,84463.0,84462.0,0.1194059]
[1744870849345,0.1560066,84463.0,84462.0,0.1194059]
[1744870849847,0.1560866,84463.0,84462.0,0.1194059]
[1744870850047,0.00808,84463.0,84462.0,0.1504059]
[1744870850451,0.008,84463.0,84462.0,0.1504059]
[1744870850651,0.00808,84463.0,84462.0,0.1504059]
[1744870851244,0.00308,84463.0,84462.0,0.1494059]
[1744870851452,0.00508,84463.0,84462.0,0.1494059]
[1744870851847,0.00508,84463.0,84462.0,0.15809007]
[1744870852052,0.00308,84463.0,84462.0,0.15809007]
[1744870852249,8e-05,84463.0,84462.0,0.15809007]
[1744870852554,0.0327,84463.0,84462.0,0.16989152]
[1744870852854,0.03278,84463.0,84462.0,0.16989152]
[1744870853157,8e-05,84463.0,84462.0,0.16989152]
[1744870853351,8e-05,84463.0,84462.0,0.17089152]
[1744870853654,0.0327,84466.0,84465.0,0.1184017]
[1744870855257,0.1521003,84466.0,84465.0,0.1184017]
[1744870855848,0.1521003,84466.0,84465.0,0.1941217]
[1744870858658,0.11849701,84475.0,84468.0,0.0591981]
[1744870858859,0.150489,84474.0,84473.0,0.1183904]
[1744870859168,0.0321,84474.0,84473.0,0.1183904]
[1744870859357,0.0321,84474.0,84473.0,0.1488904]
[1744870859955,0.150489,84474.0,84473.0,0.1488904]
[1744870860152,0.150569,84474.0,84473.0,0.1488904]
[1744870860359,0.150489,84474.0,84473.0,0.1488904]
[1744870860559,0.03218,84474.0,84473.0,0.1488904]
[1744870860963,8e-05,84474.0,84473.0,0.1488904]
[1744870861158,0.00308,84474.0,84473.0,0.1488904]
[1744870861360,0.121469,84474.0,84473.0,0.1488904]
[1744870861565,0.123469,84474.0,84473.0,0.1798904]
[1744870862756,0.03748,84474.0,84473.0,0.1798904]
[1744870862959,0.0374,84474.0,84473.0,0.1798904]
[1744870863155,0.03748,84474.0,84473.0,0.1798904]
[1744870863669,0.155869,84474.0,84473.0,0.1798904]
[1744870864866,0.155869,84474.0,84473.0,0.5406904]
[1744870865870,0.00508,84474.0,84473.0,0.5406904]
[1744870866769,0.0326,84486.0,84473.0,0.5406904]
[1744870866770,0.1484771,84483.0,84481.0,0.1183792]
[1744870866962,0.1484771,84483.0,84481.0,0.4791792]
[1744870867157,0.11855545,84482.0,84481.0,0.4791792]
[1744870867371,0.17945545,84482.0,84481.0,0.5098792]
[1744870867871,0.17953545,84482.0,84481.0,0.5098792]
[1744870868075,0.18845545,84482.0,84481.0,0.5108792]
[1744870868280,0.18853545,84482.0,84481.0,0.5108792]
[1744870874373,0.18853545,84482.0,84481.0,0.1500792]
[1744870874573,0.18853545,84482.0,84481.0,0.5108792]
[1744870874974,0.07015765,84482.0,84481.0,0.5108792]
[1744870875170,0.00925765,84482.0,84481.0,0.5411792]
[1744870876880,0.00917765,84482.0,84481.0,0.5411792]
[1744870877074,0.00925765,84482.0,84481.0,0.5411792]
[1744870877567,0.00608,84482.0,84481.0,0.5411792]
[1744870877771,0.005,84488.0,84487.0,0.1183708]
[1744870878180,0.00508,84488.0,84487.0,0.1183708]
[1744870878381,0.005,84488.0,84487.0,0.1815708]
[1744870878582,0.00508,84488.0,84487.0,0.1815708]
[1744870878880,0.1234494,84488.0,84487.0,0.1815708]
[1744870879279,0.1304494,84488.0,84487.0,0.1825708]
[1744870879480,0.1959494,84488.0,84487.0,0.1825708]
[1744870879981,0.1959494,84488.0,84487.0,0.5433708]
[1744870880182,0.1999494,84488.0,84487.0,0.5433708]
[1744870880986,0.1999494,84488.0,84487.0,0.394]
[1744870881481,0.1999494,84488.0,84487.0,0.46968]
[1744870881982,0.1999494,84488.0,84487.0,0.5880508]
[1744870882681,0.1999494,84488.0,84487.0,0.5123708]
[1744870882881,0.1999494,84488.0,84487.0,0.5880508]
[1744870883882,0.1999494,84488.0,84487.0,0.6180508]
[1744870885080,0.1999494,84488.0,84487.0,0.2572508]
[1744870886287,0.1672494,84488.0,84487.0,0.2572508]
[1744870887572,0.1672494,84488.0,84487.0,0.2272508]
[1744870887778,0.1977494,84488.0,84487.0,0.2272508]
[1744870892690,0.1977494,84488.0,84487.0,0.1950508]
[1744870893291,0.1977494,84488.0,84487.0,0.1193708]
[1744870893486,0.1977494,84488.0,84487.0,0.1950508]
[1744870896894,0.5585494,84488.0,84487.0,0.07668]
[1744870899197,0.5585494,84488.0,84487.0,0.1950508]
[1744870899399,0.04888,84488.0,84487.0,0.1950508]
[1744870899595,0.01608,84488.0,84487.0,0.1950508]
[1744870899794,0.01608,84488.0,84487.0,0.2271508]
[1744870899996,0.0591676,84513.0,84506.0,0.1183442]
[1744870900295,0.4791428,84507.0,84506.0,0.1183442]
[1744870900691,0.4792228,84507.0,84506.0,0.1183442]
[1744870901291,0.5121228,84507.0,84506.0,0.1183442]
[1744870901491,0.5181228,84507.0,84506.0,0.1183442]
[1744870901693,0.5181228,84507.0,84506.0,0.1509442]
[1744870902692,0.5221228,84507.0,84506.0,0.1509442]
[1744870902991,0.5221228,84507.0,84506.0,0.0326]
[1744870904400,0.5221228,84507.0,84506.0,0.04163989]
[1744870914004,0.1613228,84507.0,84506.0,0.04163989]
[1744870918010,0.1613228,84507.0,84506.0,0.19268409]
[1744870919414,0.1284228,84507.0,84506.0,0.19268409]
[1744870921709,0.01008,84507.0,84506.0,0.19268409]
[1744870921909,0.01,84507.0,84506.0,0.19268409]
[1744870922106,0.01008,84507.0,84506.0,0.19268409]
[1744870923204,0.1284228,84507.0,84506.0,0.19268409]
[1744870923414,0.1224228,84507.0,84506.0,0.19268409]
[1744870923608,0.1264228,84507.0,84506.0,0.19268409]
[1744870924111,0.00808,84507.0,84506.0,0.19268409]
[1744870924505,0.007,84507.0,84506.0,0.19268409]
[1744870924706,0.00708,84507.0,84506.0,0.19268409]
[1744870925412,0.0641668,84514.0,84510.0,0.0591687]
[1744870925616,0.0641668,84514.0,84513.0,0.1183344]
[1744870925802,0.005,84514.0,84513.0,0.1183344]
[1744870926202,0.00508,84514.0,84513.0,0.1183344]
[1744870926509,0.005,84514.0,84513.0,0.1183344]
[1744870926721,0.123413,84514.0,84513.0,0.1183344]
[1744870927104,0.125413,84514.0,84513.0,0.1183344]
[1744870927712,0.126413,84514.0,84513.0,0.1183344]
[1744870936719,0.189913,84514.0,84513.0,0.1183344]
[1744870937221,0.189913,84514.0,84513.0,0.1938944]
[1744870938316,0.189913,84514.0,84513.0,0.07556]
[1744870938621,0.550713,84514.0,84513.0,0.07556]
[1744870942226,0.550713,84514.0,84513.0,0.1938944]
[1744870943619,0.550713,84514.0,84513.0,0.2266944]
[1744870949122,0.189913,84514.0,84513.0,0.2266944]
[1744870949317,0.159013,84514.0,84513.0,0.2266944]
[1744870949919,0.126413,84514.0,84513.0,0.2266944]
[1744870950119,0.00808,84514.0,84513.0,0.2266944]
[1744870950522,0.1183155,84527.0,84518.0,0.0591631]
[1744870950728,0.4199546,84532.0,84521.0,0.1183232]
[1744870950729,0.11843121,84522.0,84521.0,0.1183232]
[1744870950915,0.1183232,84522.0,84521.0,0.1821232]
[1744870951119,0.1184032,84522.0,84521.0,0.1821232]
[1744870952123,0.1491032,84522.0,84521.0,0.2576832]
[1744870953118,0.1511032,84522.0,84521.0,0.2576832]
[1744870953519,0.1541032,84522.0,84521.0,0.2576832]
[1744870953715,0.1850032,84522.0,84521.0,0.2576832]
[1744870955129,0.1183165,84527.0,84526.0,0.1183162]
[1744870955326,0.00010801,84528.0,84527.0,0.2143148]
[1744870955531,0.00017754,84530.0,84529.0,0.118312]
[1744870955831,0.11848814,84530.0,84529.0,0.118312]
[1744870956034,0.00017754,84530.0,84529.0,0.118312]
[1744870956231,0.4790996,84538.0,84537.0,0.1183008]
[1744870956731,0.1183008,84537.0,84536.0,0.0321]
[1744870957231,0.1793808,84537.0,84536.0,0.0261]
[1744870957433,0.1793808,84537.0,84536.0,0.1444022]
[1744870958535,0.2101808,84537.0,84536.0,0.1444022]
[1744870962934,0.5709808,84537.0,84536.0,0.1444022]
[1744870964335,0.2101808,84537.0,84536.0,0.1444022]
[1744870964534,0.5709808,84537.0,84536.0,0.1444022]
[1744870965033,0.2101808,84537.0,84536.0,0.1444022]
[1744870965238,0.5709808,84537.0,84536.0,0.1444022]
[1744870968039,0.2101808,84537.0,84536.0,0.1444022]
[1744870968240,0.5709808,84537.0,84536.0,0.1444022]
[1744870971835,0.5709808,84537.0,84534.0,0.0923524]
[1744870971836,0.118305,84534.0,84533.0,0.07612]
[1744870972144,0.118312,84529.0,84528.0,0.0311]
[1744870972832,0.180112,84529.0,84528.0,0.0311]
[1744870974440,0.180112,84529.0,84528.0,0.1494134]
[1744870974843,0.181112,84529.0,84528.0,0.1494134]
[1744870977737,0.181112,84529.0,84528.0,0.1807134]
[1744870989651,0.0628,84529.0,84528.0,0.1807134]
[1744870989846,0.119312,84529.0,84528.0,0.1807134]
[1744870990052,0.119392,84529.0,84528.0,0.1807134]
[1744870998251,0.00108,84529.0,84528.0,0.1807134]
[1744870999159,0.119392,84529.0,84528.0,0.1807134]
[1744871002558,0.151892,84529.0,84528.0,0.1807134]
[1744871008467,0.03358,84529.0,84528.0,0.1807134]
[1744871009659,0.151892,84529.0,84528.0,0.1807134]
[1744871017374,0.03358,84529.0,84528.0,0.1807134]
[1744871017671,0.151892,84529.0,84528.0,0.1807134]
[1744871019982,0.151812,84529.0,84528.0,0.1807134]
[1744871027079,0.151812,84529.0,84528.0,0.1494134]
[1744871028287,0.151812,84529.0,84528.0,0.1813134]
[1744871038396,0.150812,84529.0,84528.0,0.1833134]
[1744871039285,0.150812,84529.0,84528.0,0.1843134]
[1744871055202,0.150812,84529.0,84528.0,0.003]
[1744871055406,0.511612,84529.0,84528.0,0.003]